Cogmind - Beta 10.2 @@@ ROGUE MODE // 2021.05.30 @ 09:23:28 Player: CrossedViper Result: Destroyed by B-86 Titan with Matter Neutralizer Performance ------------- Evolutions (5) 2500 Regions Visited (18) 3600 Robots Destroyed (215) 1075 Value Destroyed (9403) 9403 Prototype IDs (9) 180 Alien Tech Used (0) 0 Bonus (5824) 5824 TOTAL SCORE: 22582 Bonus ------- High Alert Combat Kills 526 Follower Combat Kills 745 Entered Garrisons 1000 Used RIF Installer 2000 MAIN.C Attacked Warlord 500 Warlord Defense Kill 1250 Friendly Fire -197 Cogmind --------- Core Integrity 0/1000 Matter 62/300 Energy 98/100 System Corruption 2% Temperature Cool (9) Movement Core (50) Location -4/Proximity Caves Parts ------- > --- POWER (2) -------- (None) > --- PROPULSION (4) --- (None) > --- UTILITY (7) ------ Relay Coupler [NC] (33) > --- WEAPON (4) ------- Scythe > --- INVENTORY (4) ---- HERF Cannon Compact Ion Cannon Scatter Rocket Array Improved Remote Datajack Peak State ------------ > --- POWER ------------ Micro Fission Core Reinforced Antimatter Reactor > --- PROPULSION ------- Improved Treads Improved Medium Treads Improved Medium Treads Flexi-carbon Leg > --- UTILITY ---------- Medium Storage Unit Large Storage Unit Advanced Targeting Computer Armor Integrity Analyzer Improved Kinecellerator Improved Heavy Armor Plating > --- WEAPON ----------- KE Penetrator KE Penetrator KE Penetrator KE Penetrator > --- INVENTORY -------- Long-range Terrain Scanner Precision Energy Filter Hardened Medium Armor Plating Improved Heavy Armor Plating Relay Coupler [NC] Relay Coupler [Hunter] Makeshift System Restoration Module High-powered Tractor Beam Compact Ion Cannon Compact Ion Cannon Scatter Rocket Array Improved Remote Datajack Scythe [Rating: 83] Favorites ----------- Power Micro Fission Core Engine Light Angular Momentum Engine Power Core Micro Fission Core Reactor Reinforced Antimatter Reactor Propulsion Light Treads Treads Light Treads Leg Flexi-carbon Leg Wheel Armored Wheel Utility Large Storage Unit Device Improved Coolant Injector Storage Large Storage Unit Processor Armor Integrity Analyzer Hackware Relay Coupler [NC] Protection Heavy Armor Plating Weapon KE Penetrator Energy Gun Improved Medium Laser Energy Cannon Advanced Beam Cannon Ballistic Gun KE Penetrator Launcher Missile Launcher Special Weapon Improved Remote Datajack Slashing Weapon Scythe Special Melee Weapon Datajack Build | -11 -10 -10 -9 -8 -8 -8 -8 -7 -7 -7 -7 -6 -6 -5 -5 -5 -5 -4 ------- Run | Scr Mat Min Mat Mat Gar Mat Gar Fac Gar Fac Gar Fac Gar Fac Upp Upp War Pro Slots Evolved 10 | . . . 2 2 . . . 2 . . . 2 . 2 . . . . Power 1 | . . . . . . . . . . . . 1 . . . . . . Propulsion 2 | . . . . 2 . . . . . . . . . . . . . . Utility 5 | . . . 2 . . . . 2 . . . 1 . . . . . . Weapon 2 | . . . . . . . . . . . . . . 2 . . . . Parts Attached 214 | 5 3 1 16 18 6 20 16 9 9 7 17 26 18 25 3 8 6 1 Power 24 | 1 . 1 1 1 . 4 1 . 1 . 1 5 4 3 . . 1 . Engine 16 | 1 . . 1 1 . 4 1 . 1 . . 4 3 . . . . . Core 7 | . . 1 . . . . . . . . 1 1 1 3 . . . . Reactor 1 | . . . . . . . . . . . . . . . . . 1 . Propulsion 45 | 2 . . 3 5 2 5 4 . 1 1 5 8 4 2 3 . . . Treads 29 | 2 . . 2 5 2 5 4 . 1 . 1 2 2 . 3 . . . Leg 9 | . . . . . . . . . . . 1 4 2 2 . . . . Wheel 7 | . . . 1 . . . . . . 1 3 2 . . . . . . Hover . | . . . . . . . . . . . . . . . . . . . Flight . | . . . . . . . . . . . . . . . . . . . Utility 58 | . 2 . 3 4 2 5 3 4 2 3 4 5 4 9 . 5 3 . Device 25 | . . . 2 2 1 . 2 2 . 1 1 4 2 4 . 4 . . Storage 5 | . 2 . . . . 2 . . . . . . . 1 . . . . Processor 3 | . . . 1 . . . . . . 1 . 1 . . . . . . Hackware 5 | . . . . . . . . 1 . . . . 1 1 . . 2 . Protection 20 | . . . . 2 1 3 1 1 2 1 3 . 1 3 . 1 1 . Artifact . | . . . . . . . . . . . . . . . . . . . Weapon 87 | 2 1 . 9 8 2 6 8 5 5 3 7 8 6 11 . 3 2 1 Energy Gun 6 | 1 . . 4 1 . . . . . . . . . . . . . . Energy Cannon 26 | . . . 4 2 . . 4 2 1 1 4 4 1 3 . . . . Ballistic Gun 34 | 1 1 . . 3 1 4 3 . . 2 1 4 3 7 . 3 1 . Ballistic Cannon . | . . . . . . . . . . . . . . . . . . . Launcher 10 | . . . 1 2 1 . 1 . 3 . . . 1 . . . 1 . Special Weapon 1 | . . . . . . . . . . . . . . 1 . . . . Impact Weapon . | . . . . . . . . . . . . . . . . . . . Slashing Weapon 5 | . . . . . . 1 . 1 1 . 1 . . . . . . 1 Piercing Weapon . | . . . . . . . . . . . . . . . . . . . Special Melee Weapon 5 | . . . . . . 1 . 2 . . 1 . 1 . . . . . Unidentified Prototypes 8 | . . . 4 1 . 1 . . . . . 1 . 1 . . . . Parts Lost 58 | . . . 6 4 . 2 3 . 1 . 12 5 14 . . . 9 2 Power 8 | . . . . . . 1 . . . . 1 3 3 . . . . . Propulsion 19 | . . . 2 . . . 3 . 1 . 3 1 5 . . . 4 . Utility 16 | . . . . 1 . 1 . . . . 5 1 3 . . . 3 2 Weapon 15 | . . . 4 3 . . . . . . 3 . 3 . . . 2 . Highest Loss Streak 12 | . . . 3 3 . 1 2 . 1 . 11 1 12 . . . 9 2 Average Slot Usage (%) 91 | . 76 99 97 91 90 89 96 99 99 90 77 83 85 94 94 94 92 18 Engine 6 | . 14 12 4 9 9 8 8 7 7 7 1 6 6 5 . . . . Core 3 | . . 1 6 . . . . . . . 4 2 1 4 11 11 9 . Treads 22 | . 28 28 17 29 36 36 35 30 29 16 7 4 3 4 7 17 16 . Leg 4 | . . . . . . . . . . . 1 8 16 16 15 5 4 . Wheel 1 | . . . 3 6 . . . . . 6 11 11 . . . . . . Device 5 | . . . 10 3 3 . 6 15 8 11 4 8 9 5 5 5 4 . Storage 15 | . 5 28 22 18 18 18 18 15 15 15 15 13 13 11 11 11 10 . Processor 5 | . . . 10 3 . . . . . 1 7 12 13 11 11 11 11 10 Protection 6 | . . . . 5 5 9 8 9 20 15 5 . 2 5 5 5 4 . Energy Cannon 5 | . . . 8 3 . . 11 13 10 5 4 9 3 9 11 2 . . Ballistic Gun 12 | . 18 28 2 10 17 16 6 . . 4 6 3 8 11 11 20 22 . Naked Turns . | . . . . . . . . . . . . . . . . . . . Heaviest Build 93 | 6 37 39 48 61 58 61 62 55 61 69 69 63 62 89 73 74 93 2 Greatest Support 83 | 40 40 40 40 80 80 83 83 82 82 82 36 76 76 68 83 83 83 3 Greatest Overweight (x) 5 | . . . 3 5 . 1 1 . . 2 3 4 2 2 1 . 2 . Average Overweight (x) . | . . . 2 2 . . . . . 1 1 . . 1 . . . . Largest Inventory Capacity 16 | 4 16 16 16 16 16 16 16 16 16 16 16 16 16 16 14 14 14 4 Average Capacity 15 | 4 6 16 16 16 16 16 16 16 16 16 16 16 16 15 14 14 13 4 Most Carried 16 | 3 4 9 16 16 16 16 16 16 16 16 15 16 16 16 14 14 14 4 Average Carried 13 | 1 3 3 12 13 15 15 15 14 15 15 9 14 14 13 13 13 13 3 Final Capacity 16 | 4 16 16 16 16 16 16 16 16 16 16 16 16 16 14 14 14 4 4 Final Carried 16 | 3 3 9 15 16 16 16 16 16 16 15 8 16 13 14 14 14 4 4 Class Distribution -------------------- 38% | Scavenger-Mutant 29% | Mutant 24% | Scavenger-Gunner 3% | Commander-Mutant Dominant Class ---------------- Mutant | -10/Materials Mutant | -10/Mines Scavenger-Mutant | -9/Materials Scavenger-Mutant | -8/Materials Scavenger-Mutant | -8/Garrison Mutant | -8/Materials Scavenger-Mutant | -8/Garrison Commander-Mutant | -7/Factory Scavenger-Mutant | -7/Garrison Mutant | -7/Factory Mutant | -7/Garrison Scavenger-Mutant | -6/Factory Scavenger-Mutant | -6/Garrison Scavenger-Gunner | -5/Factory Scavenger-Gunner | -5/Upper Caves Scavenger-Gunner | -5/Upper Caves Scavenger-Gunner | -5/Warlord Mutant | -4/Proximity Caves Resources | -11 -10 -10 -9 -8 -8 -8 -8 -7 -7 -7 -7 -6 -6 -5 -5 -5 -5 -4 ----------- Run | Scr Mat Min Mat Mat Gar Mat Gar Fac Gar Fac Gar Fac Gar Fac Upp Upp War Pro Matter Collected 4995 | 214 23 95 187 314 438 879 511 19 245 . 333 336 381 534 129 227 107 23 Remotely . | . . . . . . . . . . . . . . . . . . . Salvage Created 8477 | . 53 242 906 972 602 1402 510 19 538 . 369 689 659 631 220 315 350 . Parts 428 | . 8 12 58 43 37 91 22 1 22 . 10 40 30 32 7 10 5 . Haulers Intercepted 14 | . . . 4 4 . 5 . . . . . 1 . . . . . . Recyclers Shooed 4 | . . . . 3 . 1 . . . . . . . . . . . . Parts Field Recycled . | . . . . . . . . . . . . . . . . . . . Retrieved Matter . | . . . . . . . . . . . . . . . . . . . Parts Self-Destructed 52 | . . . . . . . . . . . . . . . 9 10 33 . Prevented . | . . . . . . . . . . . . . . . . . . . Kills | -11 -10 -10 -9 -8 -8 -8 -8 -7 -7 -7 -7 -6 -6 -5 -5 -5 -5 -4 ------- Run | Scr Mat Min Mat Mat Gar Mat Gar Fac Gar Fac Gar Fac Gar Fac Upp Upp War Pro Combat Hostiles Destroyed 180 | . 2 4 23 15 22 18 15 . 24 . 6 7 13 12 3 6 10 . Melee 1 | . . . . . 1 . . . . . . . . . . . . . Guns 85 | . 2 4 9 5 16 18 8 . . . 2 2 9 4 1 3 2 . Cannons 46 | . . . 9 2 . . 4 . 6 . 4 5 3 8 2 3 . . AOE 46 | . . . 4 8 5 . 3 . 17 . . . 1 . . . 8 . Classes Destroyed 19 | . 2 1 4 2 1 4 . . . . 2 1 1 . . . 1 . Worker 5 | . . . . . . 3 . 1 . . . 1 . . . . . . Builder 4 | . . . . . . 3 . . . . . 1 . . . . . . Tunneler 2 | . . . . . . 1 . . . . . 1 . . . . . . Hauler 14 | . . . 4 4 . 5 . . . . . 1 . . . . . . Recycler 4 | . . . . 2 . 1 . . . . . 1 . . . . . . Mechanic 1 | . . . . . . 1 . . . . . . . . . . . . Operator 1 | . 1 . . . . . . . . . . . . . . . . . Watcher 3 | . . . 2 . . 1 . . . . . . . . . . . . Swarmer 54 | . 2 . 11 . 11 . 5 . 14 . 2 . 3 4 . 2 . . Grunt 75 | . . 4 9 12 5 10 6 . 7 . 2 1 7 . 2 3 7 . Brawler 6 | . . . 1 . 1 . . . 2 . . . . . 1 . 1 . Duelist 2 | . . . . . 1 . 1 . . . . . . . . . . . Protector 2 | . . . . . . . . . . . 1 . . . . . 1 . Sentry 22 | . . . 2 2 4 8 . . 1 . . 1 1 2 . 1 . . Demolisher 1 | . . . . . . . . . . . 1 . . . . . . . Hunter 8 | . . . . 1 . . 3 . . . . 3 . 1 . . . . Programmer 8 | . . . . . . . . . . . . 2 1 5 . . . . Behemoth 1 | . . . . . . . . . . . . . 1 . . . . . Executioner 1 | . . . . . . . . . . . . . . . . . 1 . Thug 1 | . . 1 . . . . . . . . . . . . . . . . Best Kill Streak 9 | . 2 2 9 9 7 7 6 1 8 . 2 2 3 4 2 5 9 . Combat Bots Only 9 | . 2 2 8 5 7 3 6 . 8 . 2 2 3 4 2 5 9 . Max Kills in Single Turn 5 | . 1 1 2 5 2 1 3 1 4 . 1 1 1 1 1 1 4 . Gunslinging . | . . . . . . . . . . . . . . . . . . . Exploded 4 | . . . 2 4 2 . 3 . 4 . . . 1 . . . 4 . Melee 1 | . . . . . 1 . . . . . . . . . . . . . Uniques/NPCs Destroyed . | . . . . . . . . . . . . . . . . . . . Combat | -11 -10 -10 -9 -8 -8 -8 -8 -7 -7 -7 -7 -6 -6 -5 -5 -5 -5 -4 -------- Run | Scr Mat Min Mat Mat Gar Mat Gar Fac Gar Fac Gar Fac Gar Fac Upp Upp War Pro Damage Taken 16570 | . 143 166 984 803 858 1052 1134 10 1053 . 2861 1253 2131 786 152 499 1978 707 Core 2902 | . 47 . 194 118 80 63 86 . 94 . 497 306 413 22 . 35 324 623 Absorbed by Shields . | . . . . . . . . . . . . . . . . . . . Core Remaining (%) 49 | 100 . 81 51 . . . 36 . . . 15 . 15 . . . . . Volleys Fired 610 | . 14 16 68 52 58 100 60 1 38 . 34 53 53 26 8 10 19 . Largest 4 | . 2 2 2 2 2 2 2 2 2 . 2 2 2 4 4 4 4 . Hottest 246 | . 60 40 133 136 50 50 136 136 136 . 136 180 180 246 246 246 132 . Shots Fired 1244 | . 23 32 121 92 107 198 117 2 64 . 57 96 104 94 33 41 63 . Gun 811 | . 23 32 64 49 100 198 76 . . . 31 26 60 51 17 23 61 . Cannon 399 | . . . 54 36 . . 40 2 53 . 26 70 43 41 16 18 . . Launcher 32 | . . . 3 7 7 . 1 . 11 . . . 1 . . . 2 . Special 2 | . . . . . . . . . . . . . . 2 . . . . Kinetic 748 | . 10 32 17 46 100 198 76 . . . 31 26 60 51 17 23 61 . Thermal 445 | . . . 98 38 . . 40 2 53 . 26 70 43 41 16 18 . . Explosive 32 | . . . 3 7 7 . 1 . 11 . . . 1 . . . 2 . Electromagnetic 17 | . 13 . 3 1 . . . . . . . . . . . . . . Robot Hit Streak 19 | . 4 10 9 11 19 14 16 2 17 . 8 14 15 9 8 7 7 . Robot Miss Streak 4 | . 4 1 4 2 4 3 2 . 2 . 3 3 3 4 1 2 2 . Penetration Max 1 | . . . . . . . . . . . . 1 1 . . . 1 . Secondary Targets 10 | . . 1 . . 4 3 1 . . . . . . . . . 1 . Max Gunslinging Chain 1 | . . 1 . . 1 1 1 . . . . . . . . . 1 . Shots Hit Robots 800 | . 9 26 73 64 63 139 61 4 46 . 56 68 67 51 21 24 28 . Core Hits 408 | . 5 13 36 38 41 54 25 1 46 . 12 24 28 22 7 10 46 . Critical Hits 28 | . 1 1 3 1 . 2 2 . 2 . 4 1 4 1 1 1 4 . Critical Kills 11 | . . 1 2 1 . 2 . . 1 . . . 1 1 . 1 1 . Critical Parts Destroyed 14 | . 1 . 1 . . . 2 . 1 . 3 1 3 . 1 . 1 . Melee Attacks 37 | . . . . . . 12 . 3 3 . 16 . 2 . . . . 1 Impact . | . . . . . . . . . . . . . . . . . . . Slashing 13 | . . . . . . 2 . . 3 . 7 . . . . . . 1 Piercing . | . . . . . . . . . . . . . . . . . . . Sneak Attacks 21 | . . . . . . 9 . 3 . . 9 . . . . . . . Combat Hostiles 2 | . . . . . . . . 2 . . . . . . . . . . Follow-up Attacks . | . . . . . . . . . . . . . . . . . . . Damage Inflicted 21040 | . 147 208 1628 2019 1743 2330 1243 42 2574 . 1167 1826 1814 1176 378 549 2196 . Guns 8518 | . 124 208 619 566 1075 2293 501 . . . 389 433 809 375 105 247 774 . Cannons 6522 | . . . 706 555 . . 469 42 861 . 299 1393 832 790 273 302 . . Explosions 5457 | . 23 . 302 898 664 . 273 . 1713 . . . 173 . . . 1411 . Melee 479 | . . . . . . . . . . . 479 . . . . . . . Ramming 64 | . . . 1 . 4 37 . . . . . . . 11 . . 11 . Kinetic 7856 | . 38 208 101 508 1075 2293 501 . . . 389 433 809 375 105 247 774 . Thermal 7050 | . 23 . 1176 590 . . 469 42 861 . 299 1393 832 790 273 302 . . Explosive 5434 | . . . 302 898 664 . 273 . 1713 . . . 173 . . . 1411 . Electromagnetic 157 | . 86 . 48 23 . . . . . . . . . . . . . . Impact . | . . . . . . . . . . . . . . . . . . . Slashing 479 | . . . . . . . . . . . 479 . . . . . . . Piercing . | . . . . . . . . . . . . . . . . . . . Highest Corruption 8 | . . . . 3 3 8 8 . . . . 3 5 6 6 6 . 2 Average Corruption 4 | . . . . 3 3 4 8 . . . . 2 3 4 6 5 . 1 Corruption Purged 6 | . . . . . . . . . . . . . . . . 6 . . Effects 229 | . . . . 6 26 46 48 . . . . 7 22 20 20 34 . . Message Errors 42 | . . . . 1 9 9 7 . . . . 1 3 6 3 3 . . Matter Fused 45 | . . . . . 4 12 9 . . . . . 5 3 4 8 . . Heat Flow Errors 29 | . . . . . 3 4 7 . . . . 2 3 1 5 4 . . Energy Discharges 32 | . . . . 1 3 7 8 . . . . . 1 2 . 10 . . Parts Rejected 1 | . . . . . . 1 . . . . . . . . . . . . Data Loss (minor) 26 | . . . . 1 2 2 5 . . . . 3 3 1 5 4 . . Data Loss (major) 6 | . . . . . . 2 2 . . . . . . 1 1 . . . Misfires 3 | . . . . . . . 1 . . . . . . . 1 1 . . Targeting Errors 34 | . . . . 3 4 7 6 . . . . 1 6 2 1 4 . . Weapon Failures 11 | . . . . . 1 2 3 . . . . . 1 4 . . . . Overload Shots . | . . . . . . . . . . . . . . . . . . . Overflow Damage 207 | . . . 59 5 . . 45 . 12 . . 28 11 26 . 8 13 . Projectiles 95 | . . . 33 . . . . . . . . 28 . 26 . 8 . . Explosions 112 | . . . 26 5 . . 45 . 12 . . . 11 . . . 13 . Melee . | . . . . . . . . . . . . . . . . . . . Knockbacks 1 | . . . . . . . . . . . . . . . . . 1 . Impact 1 | . . . . . . . . . . . . . . . . . 1 . Kinetic . | . . . . . . . . . . . . . . . . . . . Secondary . | . . . . . . . . . . . . . . . . . . . Self-Inflicted Damage 245 | . 25 . 37 41 50 . . . 31 . . . 32 5 . . 24 . Shots 8 | . 1 . 1 1 2 . . . 1 . . . 1 . . . 1 . Rammed 7 | . . . 1 . 1 1 . . . . . . 1 1 . . 2 . Targets Rammed 10 | . . . 1 . 2 3 . . . . . . 1 1 . . 2 . Kicked . | . . . . . . . . . . . . . . . . . . . Crushed 3 | . . . . . 1 2 . . . . . . . . . . . . Highest Temperature 380 | . 60 43 325 108 221 310 364 57 199 . 379 380 242 198 196 199 291 . Average Temperature 95 | . 29 15 104 35 45 63 89 31 135 . 138 159 100 106 101 102 132 . Received Heat Transfer 3828 | . . 102 219 288 261 432 207 . 390 . 408 216 531 27 27 117 558 45 Effects 17 | . . . 2 . . 1 1 . . . 2 7 1 . . . 3 . Shutdowns 3 | . . . 1 . . . 1 . . . . 1 . . . . . . Energy Bleed 4 | . . . . . . 1 . . . . . 2 1 . . . . . Interference 8 | . . . . . . . . . . . 2 3 . . . . 3 . Short Circuit 2 | . . . 1 . . . . . . . . 1 . . . . . . Siege Activations . | . . . . . . . . . . . . . . . . . . . Robots Corrupted . | . . . . . . . . . . . . . . . . . . . Combat Hostiles . | . . . . . . . . . . . . . . . . . . . Parts Fried . | . . . . . . . . . . . . . . . . . . . Impact Corruptions . | . . . . . . . . . . . . . . . . . . . Robots Melted 2 | . . . 1 . . . . . 1 . . . . . . . . . Combat Hostiles 2 | . . . 1 . . . . . 1 . . . . . . . . . Parts Melted 26 | . . . 7 2 . . 2 1 6 . . 5 1 2 . . . . Heat Transferred 11169 | . 50 . 2257 1073 . . 851 74 1554 . 537 1998 1073 925 370 407 . . Parts Sabotaged . | . . . . . . . . . . . . . . . . . . . Parts Stolen . | . . . . . . . . . . . . . . . . . . . Parts Stripped . | . . . . . . . . . . . . . . . . . . . Power Chain Reactions 1 | . 1 . . . . . . . . . . . . . . . . . Missiles Intercepted . | . . . . . . . . . . . . . . . . . . . Alert | -11 -10 -10 -9 -8 -8 -8 -8 -7 -7 -7 -7 -6 -6 -5 -5 -5 -5 -4 ------- Run | Scr Mat Min Mat Mat Gar Mat Gar Fac Gar Fac Gar Fac Gar Fac Upp Upp War Pro Peak Influence 895 | . 66 145 438 471 895 536 765 547 750 403 371 331 218 250 . . . . Initial 436 | . . 25 56 155 9 436 243 401 242 393 282 194 117 114 . . . . Average 341 | . 20 49 270 263 535 402 561 405 555 394 319 210 185 101 . . . . Maximum Alert Level 3 | . . . 2 2 3 2 3 2 3 2 1 1 1 1 . . . . Low Security (%) 28 | 100 100 100 24 32 7 5 . . . . . 44 45 88 . . . . Level 1 31 | . . . 73 50 14 34 10 19 17 88 100 55 54 11 . . . . Level 2 34 | . . . 1 17 54 59 74 80 64 12 . . . . . . . . Level 3 5 | . . . . . 23 . 14 . 18 . . . . . . . . . Level 4 . | . . . . . . . . . . . . . . . . . . . Level 5 . | . . . . . . . . . . . . . . . . . . . High Security . | . . . . . . . . . . . . . . . . . . . Max Security . | . . . . . . . . . . . . . . . . . . . Squads Dispatched 17 | . 1 1 4 4 . 1 . 1 . . . 3 . 2 . . . . Investigation 6 | . 1 . 3 1 . 1 . . . . . . . . . . . . Extermination 5 | . . . . . . . . 1 . . . 2 . 2 . . . . Reinforcement 3 | . . . 1 1 . . . . . . . 1 . . . . . . Assault 2 | . . 1 . 1 . . . . . . . . . . . . . . Garrison 1 | . . . . 1 . . . . . . . . . . . . . . Intercept . | . . . . . . . . . . . . . . . . . . . Construction Impeded 1 | . . . . 1 . . . . . . . . . . . . . . Haulers Reinforced 1 | . . . . . . . . . . . . 1 . . . . . . Stealth | -11 -10 -10 -9 -8 -8 -8 -8 -7 -7 -7 -7 -6 -6 -5 -5 -5 -5 -4 --------- Run | Scr Mat Min Mat Mat Gar Mat Gar Fac Gar Fac Gar Fac Gar Fac Upp Upp War Pro Distress Signals 12 | . . . 3 3 . 5 . . . . . 1 . . . . . . Communications Jammed . | . . . . . . . . . . . . . . . . . . . Distress Signals . | . . . . . . . . . . . . . . . . . . . Times Spotted 296 | . 6 11 40 20 30 41 23 2 24 . 19 13 20 15 3 6 17 6 Peak Tracking Total 10 | . 3 4 8 6 5 5 6 1 10 . 7 3 6 5 3 5 9 6 Tactical Retreats 31 | . . 4 4 2 7 1 . . 2 . 2 1 4 1 . . 1 2 Traps | -11 -10 -10 -9 -8 -8 -8 -8 -7 -7 -7 -7 -6 -6 -5 -5 -5 -5 -4 ------- Run | Scr Mat Min Mat Mat Gar Mat Gar Fac Gar Fac Gar Fac Gar Fac Upp Upp War Pro Traps Triggered 20 | . . . 3 1 2 1 3 . . . 1 4 2 1 . . 2 . Indirectly . | . . . . . . . . . . . . . . . . . . . Trap Hack Attempts . | . . . . . . . . . . . . . . . . . . . Triggered . | . . . . . . . . . . . . . . . . . . . Disarmed . | . . . . . . . . . . . . . . . . . . . Reprogrammed . | . . . . . . . . . . . . . . . . . . . Reused . | . . . . . . . . . . . . . . . . . . . Traps Extracted . | . . . . . . . . . . . . . . . . . . . Installed . | . . . . . . . . . . . . . . . . . . . Triggered 2 | . . . . . . . . . . . . . . . 1 1 . . Machines | -11 -10 -10 -9 -8 -8 -8 -8 -7 -7 -7 -7 -6 -6 -5 -5 -5 -5 -4 ---------- Run | Scr Mat Min Mat Mat Gar Mat Gar Fac Gar Fac Gar Fac Gar Fac Upp Upp War Pro Machines Disabled 24 | . . . . 1 3 3 4 4 2 . . 1 1 4 . . 1 . Max in Single Turn 2 | . . . . 1 1 1 1 . 1 . . 1 1 2 . . 1 . Garrison Access 1 | . . . . . . . . . . . . . . 1 . . . . Garrison Relay 9 | . . . . . 3 . 4 . 1 . . . 1 . . . . . Machines Sabotaged . | . . . . . . . . . . . . . . . . . . . Garrisons Compromised . | . . . . . . . . . . . . . . . . . . . Overloaded Fab Kills . | . . . . . . . . . . . . . . . . . . . Fab Network Shutdowns . | . . . . . . . . . . . . . . . . . . . Hacking | -11 -10 -10 -9 -8 -8 -8 -8 -7 -7 -7 -7 -6 -6 -5 -5 -5 -5 -4 --------- Run | Scr Mat Min Mat Mat Gar Mat Gar Fac Gar Fac Gar Fac Gar Fac Upp Upp War Pro Machines Accessed 28 | . 3 . 1 4 . 8 . 2 . 2 . 4 . 4 . . . . Terminals 20 | . 3 . 1 3 . 6 . 1 . 1 . 3 . 2 . . . . Fabricators . | . . . . . . . . . . . . . . . . . . . Repair Stations 1 | . . . . . . 1 . . . . . . . . . . . . Recycling Units . | . . . . . . . . . . . . . . . . . . . Scanalyzers 1 | . . . . . . . . . . . . . . 1 . . . . Garrison Access 6 | . . . . 1 . 1 . 1 . 1 . 1 . 1 . . . . Total Hacks 67 | . 8 . 2 10 . 24 . 3 . 4 . 9 . 7 . . . . Successful 30 | . 1 . . 6 . 13 . 2 . 2 . 3 . 3 . . . . Failed 37 | . 7 . 2 4 . 11 . 1 . 2 . 6 . 4 . . . . Catastrophic 6 | . . . . 1 . 2 . . . . . 1 . 2 . . . . Database Lockouts . | . . . . . . . . . . . . . . . . . . . Manual 27 | . 8 . . 6 . 11 . . . . . 2 . . . . . . Terminals 55 | . 8 . 2 8 . 20 . 2 . 3 . 8 . 4 . . . . Fabricators . | . . . . . . . . . . . . . . . . . . . Repair Stations 3 | . . . . . . 3 . . . . . . . . . . . . Recycling Units . | . . . . . . . . . . . . . . . . . . . Scanalyzers 2 | . . . . . . . . . . . . . . 2 . . . . Garrison Access 7 | . . . . 2 . 1 . 1 . 1 . 1 . 1 . . . . Terminal Hacks 14 | . 1 . . 5 . 5 . 1 . 1 . 1 . . . . . . Part Schematic 1 | . . . . . . . . . . . . 1 . . . . . . Robot Analysis 1 | . 1 . . . . . . . . . . . . . . . . . Branch Access Points 1 | . . . . . . . . . . 1 . . . . . . . . Machine Index 1 | . . . . . . . . 1 . . . . . . . . . . Terminal Index 2 | . . . . 1 . 1 . . . . . . . . . . . . Alert Level 1 | . . . . 1 . . . . . . . . . . . . . . Unreport Threat 5 | . . . . 3 . 2 . . . . . . . . . . . . Locate Traps 1 | . . . . . . 1 . . . . . . . . . . . . Hauler Manifests 1 | . . . . . . 1 . . . . . . . . . . . . Fabricator Hacks . | . . . . . . . . . . . . . . . . . . . Repair Station Hacks 2 | . . . . . . 2 . . . . . . . . . . . . Scan Component 1 | . . . . . . 1 . . . . . . . . . . . . Repair 1 | . . . . . . 1 . . . . . . . . . . . . Recycling Unit Hacks . | . . . . . . . . . . . . . . . . . . . Scanalyzer 2 | . . . . . . . . . . . . . . 2 . . . . Insert Component 1 | . . . . . . . . . . . . . . 1 . . . . Analyze 1 | . . . . . . . . . . . . . . 1 . . . . Garrison Access Hacks 6 | . . . . 1 . 1 . 1 . 1 . 1 . 1 . . . . Unlock Access 5 | . . . . 1 . 1 . 1 . 1 . 1 . . . . . . Seal Access 1 | . . . . . . . . . . . . . . 1 . . . . Unauthorized Hacks 6 | . . . . . . 5 . . . . . 1 . . . . . . Terminals 6 | . . . . . . 5 . . . . . 1 . . . . . . Track 1 | . . . . . . 1 . . . . . . . . . . . . Assimilate 1 | . . . . . . 1 . . . . . . . . . . . . Botnet 1 | . . . . . . 1 . . . . . . . . . . . . Operators 3 | . . . . . . 2 . . . . . 1 . . . . . . Fabricators . | . . . . . . . . . . . . . . . . . . . Repair Stations . | . . . . . . . . . . . . . . . . . . . Recycling Units . | . . . . . . . . . . . . . . . . . . . Scanalyzers . | . . . . . . . . . . . . . . . . . . . Garrison Access . | . . . . . . . . . . . . . . . . . . . Data Cores Recovered 1 | . 1 . . . . . . . . . . . . . . . . . Used . | . . . . . . . . . . . . . . . . . . . Hacking Detections 22 | . 3 . 1 3 . 6 . 2 . 1 . 4 . 2 . . . . Full Trace Events 3 | . 1 . 1 . . 1 . . . . . . . . . . . . Feedback Events . | . . . . . . . . . . . . . . . . . . . Feedback Blocked . | . . . . . . . . . . . . . . . . . . . Robot Schematics Acquired . | . . . . . . . . . . . . . . . . . . . Robots Built . | . . . . . . . . . . . . . . . . . . . Matter . | . . . . . . . . . . . . . . . . . . . Time . | . . . . . . . . . . . . . . . . . . . Total Robot Build Rating . | . . . . . . . . . . . . . . . . . . . Part Schematics Acquired 2 | . . . . . . . . . . . . 1 . 1 . . . . Parts Built . | . . . . . . . . . . . . . . . . . . . Matter . | . . . . . . . . . . . . . . . . . . . Time . | . . . . . . . . . . . . . . . . . . . Total Part Build Rating . | . . . . . . . . . . . . . . . . . . . Parts Repaired 1 | . . . . . . 1 . . . . . . . . . . . . Time 60 | . . . . . . 60 . . . . . . . . . . . . Parts Recycled . | . . . . . . . . . . . . . . . . . . . Recycled Matter . | . . . . . . . . . . . . . . . . . . . Retrieved Matter . | . . . . . . . . . . . . . . . . . . . Retrieved Components . | . . . . . . . . . . . . . . . . . . . Parts Scanalyzed 1 | . . . . . . . . . . . . . . 1 . . . . Part Schematics Acquired 1 | . . . . . . . . . . . . . . 1 . . . . Parts Damaged . | . . . . . . . . . . . . . . . . . . . Bothacking | -11 -10 -10 -9 -8 -8 -8 -8 -7 -7 -7 -7 -6 -6 -5 -5 -5 -5 -4 ------------ Run | Scr Mat Min Mat Mat Gar Mat Gar Fac Gar Fac Gar Fac Gar Fac Upp Upp War Pro Used RIF Installer 4 | . . . . . 1 . 1 . 1 . 1 . . . . . . . Threat Obfuscator 2 | . . . . . . . 1 . 1 . . . . . . . . . Alert ID Control 1 | . . . . . . . . . . . 1 . . . . . . . Robots Hacked 7 | . . . . . . 4 . 1 . . . . 1 1 . . . . Non-combat 5 | . . . . . . 4 . 1 . . . . . . . . . . Combat 2 | . . . . . . . . . . . . . 1 1 . . . . Robot Hacks Applied 10 | . . . . . . 7 . 1 . . . . 1 1 . . . . parse_system 3 | . . . . . . 3 . . . . . . . . . . . . no_distress 2 | . . . . . . 2 . . . . . . . . . . . . drop_inventory 1 | . . . . . . . . 1 . . . . . . . . . . find_recycling 1 | . . . . . . 1 . . . . . . . . . . . . ignore_parts 1 | . . . . . . 1 . . . . . . . . . . . . overwrite_iff 1 | . . . . . . . . . . . . . 1 . . . . . formatsys_high 1 | . . . . . . . . . . . . . . 1 . . . . Relay Couplers Released 39 | . . . . . 13 . 15 . 4 . . . 4 3 . . . . Machine Destruction 39 | . . . . . 13 . 15 . 4 . . . 4 3 . . . . Attached 5 | . . . . . . . . 1 . . . . 1 1 . . 2 . Robots Rewired 10 | . . . . . . . 6 1 . . 3 . . . . . . . Allies Hacked . | . . . . . . . . . . . . . . . . . . . Hacks Repelled . | . . . . . . . . . . . . . . . . . . . Allies | -11 -10 -10 -9 -8 -8 -8 -8 -7 -7 -7 -7 -6 -6 -5 -5 -5 -5 -4 -------- Run | Scr Mat Min Mat Mat Gar Mat Gar Fac Gar Fac Gar Fac Gar Fac Upp Upp War Pro Total Allies 14 | . . 1 . . . 1 6 1 . . 3 . 1 1 . . . . Largest Group 7 | . . 1 . . . 1 7 5 5 . 2 1 1 1 . . . . Highest-Rated Group 100 | . . 31 . . . 10 100 87 87 . 41 21 12 49 . . . . Highest-Rated Ally 49 | . . 31 . . . 10 15 32 32 . 21 21 12 49 . . . . Total Orders 5 | . . . . . . 2 2 . 1 . . . . . . . . . STAY 3 | . . . . . . 1 1 . 1 . . . . . . . . . FOLLOW 2 | . . . . . . 1 1 . . . . . . . . . . . Ally Attacks 97 | . . 6 . . . . 21 8 12 . 26 19 3 2 . . . . Total Damage 2320 | . . 126 . . . . 516 210 315 . 533 488 45 87 . . . . Kills 30 | . . 2 . . . . 9 1 4 . 10 4 . . . . . . Allies Corrupted . | . . . . . . . . . . . . . . . . . . . Allies Melted . | . . . . . . . . . . . . . . . . . . . Intel | -11 -10 -10 -9 -8 -8 -8 -8 -7 -7 -7 -7 -6 -6 -5 -5 -5 -5 -4 ------- Run | Scr Mat Min Mat Mat Gar Mat Gar Fac Gar Fac Gar Fac Gar Fac Upp Upp War Pro Robot Analysis Total 1 | . 1 . . . . . . . . . . . . . . . . . Derelict Logs Recovered 5 | . . . . . . . . . . . . . . . 3 1 . 1 Drone Launches . | . . . . . . . . . . . . . . . . . . . Drone Recoveries . | . . . . . . . . . . . . . . . . . . . Exploration | -11 -10 -10 -9 -8 -8 -8 -8 -7 -7 -7 -7 -6 -6 -5 -5 -5 -5 -4 ------------- Run | Scr Mat Min Mat Mat Gar Mat Gar Fac Gar Fac Gar Fac Gar Fac Upp Upp War Pro Turns Passed 14068 | 83 311 633 929 441 1417 1764 1291 499 798 150 427 666 646 1086 711 1355 731 130 Spaces Moved 7104 | 54 169 182 452 199 704 871 673 296 431 110 242 402 288 611 447 561 172 240 Core 265 | 15 . . . . . . . . . . . . . . . . 10 240 Treads 4430 | 39 169 182 214 58 704 871 673 296 431 5 25 . 15 . 25 561 162 . Legs 1452 | . . . . . . . . . . . . 146 273 611 422 . . . Wheels 957 | . . . 238 141 . . . . . 105 217 256 . . . . . . Hover . | . . . . . . . . . . . . . . . . . . . Flight . | . . . . . . . . . . . . . . . . . . . Fastest Speed 50 | 50 160 160 120 120 160 160 155 156 155 120 100 100 120 150 150 160 50 50 Average Speed 147 | 129 160 160 154 137 160 160 157 156 155 121 114 108 150 151 150 160 158 50 Slowest Speed 210 | 160 160 160 200 200 160 180 172 156 156 156 210 150 180 180 160 160 200 50 Overloaded Moves . | . . . . . . . . . . . . . . . . . . . Propulsion Burnouts . | . . . . . . . . . . . . . . . . . . . Robots Hopped . | . . . . . . . . . . . . . . . . . . . Cave-ins Triggered . | . . . . . . . . . . . . . . . . . . . Exploration Rate (%) 37 | 4 33 29 35 21 69 74 70 9 80 3 46 16 43 13 68 61 12 35 Regions Visited 18 Branch Regions 5 Pre-discovered Areas 1 | . . . . . . . . . . . . . . . 1 . . . Known Exits Taken 5 | . . . . 1 . 1 . 1 . 1 . 1 . . . . . . Unknown Exits Taken 8 | 1 1 1 1 . . . . . . . . . . 1 1 1 1 . Scrap Searched 8 | . . . . . . . . . . . . . . . 3 4 . 1 Spaces Dug 10 | . . . . 4 . 2 . . . . . . . . . . 3 1 Terrain Destroyed 287 | . 3 . 19 39 11 2 4 . 57 . 2 5 13 45 9 8 69 1 Melee 3 | . . . . . . 2 . . . . . . . . . . . 1 Projectile 63 | . . . . . . . . . . . 2 5 5 13 9 8 21 . AOE 221 | . 3 . 19 39 11 . 4 . 57 . . . 8 32 . . 48 . Terrain Rammed . | . . . . . . . . . . . . . . . . . . . Walls Destroyed . | . . . . . . . . . . . . . . . . . . . Machines Disabled . | . . . . . . . . . . . . . . . . . . . Actions | -11 -10 -10 -9 -8 -8 -8 -8 -7 -7 -7 -7 -6 -6 -5 -5 -5 -5 -4 --------- Run | Scr Mat Min Mat Mat Gar Mat Gar Fac Gar Fac Gar Fac Gar Fac Upp Upp War Pro Total 9650 | 67 189 498 564 297 926 1104 816 328 485 126 319 531 391 713 466 992 589 249 Wait 1358 | . . 293 1 . 148 68 11 12 1 . 9 13 14 1 3 405 375 4 Move 7087 | 53 168 181 451 198 703 871 671 295 429 110 241 402 287 610 446 560 171 240 Hop . | . . . . . . . . . . . . . . . . . . . Pick Up 122 | 7 2 6 19 12 4 11 6 3 2 3 1 14 8 16 2 3 1 2 Fast Attach 83 | 3 2 1 1 6 2 10 4 1 2 1 5 21 8 12 2 1 1 . Attach 63 | 2 1 . 9 9 2 2 4 3 1 2 8 2 7 5 1 . 4 1 Detach 7 | . . . 1 2 . . 1 1 . . . 1 . 1 . . . . Swap 68 | . . . 6 3 2 8 8 5 6 4 4 3 3 8 . 7 1 . Drop 139 | 2 2 1 7 15 5 19 6 4 3 6 1 14 4 25 4 5 15 1 Fire 610 | . 14 16 68 52 58 100 60 1 38 . 34 53 53 26 8 10 19 . Melee 37 | . . . . . . 12 . 3 3 . 16 . 2 . . . . 1 Ram . | . . . . . . . . . . . . . . . . . . . Kick 2 | . . . . . . . . . . . . . 1 1 . . . . Crush 8 | . . . 1 . 2 3 . . . . . . . . . . 2 . Escape Stasis 17 | . . . . . . . . . . . . 8 4 5 . . . . Rewire 49 | . . . . . . . 45 . . . . . . 3 . 1 . . Trap . | . . . . . . . . . . . . . . . . . . . Miscellaneous . | . . . . . . . . . . . . . . . . . . . Route ------- -11/Scrapyard -10/Materials -10/Mines -9/Materials -8/Materials -8/Garrison (discovered 2 exits: *Mat x2) -8/Materials (discovered 3 exits: *Fac x2 / Gar) -8/Garrison (discovered 3 exits: *Fac x3) -7/Factory -7/Garrison (discovered 3 exits: *Fac x3) -7/Factory (discovered 3 exits: Low x2 / Gar) -7/Garrison (discovered 2 exits: *Fac x2) -6/Factory -6/Garrison -5/Factory -5/Upper Caves -5/Upper Caves (discovered 2 exits: Fac / [*War]) -5/Warlord -4/Proximity Caves History --------- Turn | Location | Event 6 | -11/Scrapyard | Discovered new exit (range 15) 84 | -11/Scrapyard | Entered Materials 315 | -10/Materials | Build established: Mutant 317 | -10/Materials | Discovered new exit (range 16) 395 | -10/Materials | Entered Mines 488 | -10/Mines | Excavation squad dispatched 488 | -10/Mines | A large section of the Mines collapsed 668 | -10/Mines | Discovered new exit (range 4) 868 | -10/Mines | Met a Derelict testing a Signal Generator 883 | -10/Mines | Found Signal Generator 1028 | -10/Mines | Entered Materials 1028 | -9/Materials | Evolved 2 slots: Utility x2 1229 | -9/Materials | Destroyed 8 combat bots 1237 | -9/Materials | Lost 3 parts (1n2w) 1386 | -9/Materials | Build established: Scavenger-Mutant 1902 | -9/Materials | Build established: Mutant 1953 | -9/Materials | Discovered new exit (range 5) 1957 | -9/Materials | Entered another Materials area 1957 | -8/Materials | Evolved 2 slots: Propulsion x2 2043 | -8/Materials | Lost 3 parts (1u2w) 2198 | -8/Materials | Garrison activated, responded to threat 2340 | -8/Materials | Identified exit to Garrison 2398 | -8/Materials | Entered Garrison 2426 | -8/Garrison | Triggered checkpoint 2466 | -8/Garrison | Garrison Relay disabled 2548 | -8/Garrison | Triggered checkpoint 2556 | -8/Garrison | Triggered checkpoint 2587 | -8/Garrison | Build established: Scavenger-Mutant 2602 | -8/Garrison | Destroyed 7 combat bots 2631 | -8/Garrison | Discovered new exit (range 15) 2664 | -8/Garrison | Installed Relay Interface Framework 2710 | -8/Garrison | Triggered checkpoint 2753 | -8/Garrison | Garrison Relay disabled 3375 | -8/Garrison | Discovered new exit (range 11) 3460 | -8/Garrison | Triggered checkpoint 3499 | -8/Garrison | Garrison Relay disabled 3815 | -8/Garrison | Entered Materials 4054 | -8/Materials | Discovered new exit (range 16) 4184 | -8/Materials | Build established: Mutant 4245 | -8/Materials | Discovered new exit (range 8) 5150 | -8/Materials | Repaired Enh. Autogun 5576 | -8/Materials | Identified exit to Garrison 5579 | -8/Materials | Entered Garrison 5579 | -8/Garrison | Accompanied by 1 ally 5587 | -8/Garrison | Expanded RIF knowledge: Threat Obfuscation 5633 | -8/Garrison | Garrison Relay disabled 5702 | -8/Garrison | Triggered checkpoint 5716 | -8/Garrison | Core integrity fell below 50% 5769 | -8/Garrison | Discovered new exit (range 9) 5814 | -8/Garrison | Triggered checkpoint 5836 | -8/Garrison | Triggered checkpoint 5923 | -8/Garrison | Garrison Relay disabled 6002 | -8/Garrison | Triggered checkpoint 6101 | -8/Garrison | Garrison Relay disabled 6256 | -8/Garrison | Discovered new exit (range 14) 6502 | -8/Garrison | Triggered checkpoint 6632 | -8/Garrison | Build established: Scavenger-Mutant 6680 | -8/Garrison | Triggered checkpoint 6706 | -8/Garrison | Garrison Relay disabled 6745 | -8/Garrison | Discovered new exit (range 10) 6870 | -8/Garrison | Entered Factory 6870 | -7/Factory | Accompanied by 4 allies 6870 | -7/Factory | Evolved 2 slots: Utility x2 7250 | -7/Factory | Build established: Commander-Mutant 7362 | -7/Factory | Identified exit to Garrison 7369 | -7/Factory | Entered Garrison 7369 | -7/Garrison | Accompanied by 5 allies 7408 | -7/Garrison | Triggered checkpoint 7408 | -7/Garrison | Garrison Relay disabled 7535 | -7/Garrison | Destroyed 8 combat bots 7675 | -7/Garrison | Triggered checkpoint 7736 | -7/Garrison | Discovered new exit (range 12) 7864 | -7/Garrison | Triggered checkpoint 7943 | -7/Garrison | Discovered new exit (range 14) 7954 | -7/Garrison | Build established: Scavenger-Mutant 8018 | -7/Garrison | Triggered checkpoint 8048 | -7/Garrison | Destroyed 8 combat bots 8111 | -7/Garrison | Discovered new exit (range 15) 8145 | -7/Garrison | Expanded RIF knowledge: Threat Obfuscation 8167 | -7/Garrison | Entered Factory 8299 | -7/Factory | Identified exit to Lower Caves 8317 | -7/Factory | Identified exit to Garrison 8317 | -7/Factory | Entered Garrison 8337 | -7/Garrison | Spotted B-75 Beast 8391 | -7/Garrison | Core integrity fell below 50% 8448 | -7/Garrison | Lost 11 parts (1p3n4u3w) 8476 | -7/Garrison | Triggered checkpoint 8482 | -7/Garrison | Build established: Mutant 8496 | -7/Garrison | Core integrity fell below 20% 8604 | -7/Garrison | Discovered new exit (range 10) 8652 | -7/Garrison | Triggered checkpoint 8677 | -7/Garrison | Discovered new exit (range 10) 8695 | -7/Garrison | Expanded RIF knowledge: Alert ID Control 8744 | -7/Garrison | Entered Factory 8744 | -6/Factory | Accompanied by 1 ally 8744 | -6/Factory | Evolved 2 slots: Power x1, Utility x1 8864 | -6/Factory | Build established: Scavenger-Mutant 9410 | -6/Factory | Identified exit to Garrison 9410 | -6/Factory | Entered Garrison 9440 | -6/Garrison | Triggered checkpoint 9454 | -6/Garrison | Garrison Relay disabled 9515 | -6/Garrison | Spotted B-75 Beast 9669 | -6/Garrison | Destroyed B-75 Beast 9686 | -6/Garrison | Core integrity fell below 50% 9726 | -6/Garrison | Core integrity fell below 20% 9740 | -6/Garrison | Lost 12 parts (2p4n3u3w) 9766 | -6/Garrison | Triggered checkpoint 9826 | -6/Garrison | Triggered checkpoint 9860 | -6/Garrison | Spotted B-75 Beast 9860 | -6/Garrison | Spotted B-75 Beast 9876 | -6/Garrison | Triggered checkpoint 10031 | -6/Garrison | Discovered new exit (range 15) 10056 | -6/Garrison | Entered Factory 10056 | -5/Factory | Evolved 2 slots: Weapon x2 10357 | -5/Factory | Build established: Scavenger-Gunner 10487 | -5/Factory | Found Prototype Launcher 10492 | -5/Factory | Identified Scatter Rocket Array 10829 | -5/Factory | P-70 Sage assimilated allied Sentinel 6a 11130 | -5/Factory | Discovered new exit (range 3) 11142 | -5/Factory | Entered Upper Caves 11328 | -5/Upper Caves | Learned Factory trap positions 11630 | -5/Upper Caves | Learned location of Armory (-3) 11765 | -5/Upper Caves | Learned Factory security intel 11819 | -5/Upper Caves | Discovered new exit (range 8) 11853 | -5/Upper Caves | Entered another Upper Caves area 11891 | -5/Upper Caves | Attracted the attention of an 0b10 checkpoint 11952 | -5/Upper Caves | Identified exit to Factory 12676 | -5/Upper Caves | Discovered new exit (range 12) 13208 | -5/Upper Caves | Entered Warlord 13250 | -5/Warlord | Discovered new exit (range 14) 13282 | -5/Warlord | Opened side exit 13298 | -5/Warlord | RIF detected upon attempting to enter Warlord's base 13298 | -5/Warlord | Attacked by Warlord forces 13453 | -5/Warlord | Warlord's base attacked by MAIN.C 13803 | -5/Warlord | Warlord forces counterattacked 13879 | -5/Warlord | Spotted Executioner 13905 | -5/Warlord | Destroyed Executioner 13926 | -5/Warlord | Destroyed 9 combat bots 13939 | -5/Warlord | Entered Proximity Caves 13946 | -4/Proximity Caves | Learned Research security intel 13964 | -4/Proximity Caves | Lost 9 parts (4n3u2w) 13992 | -4/Proximity Caves | Spotted B-86 Titan 14037 | -4/Proximity Caves | Core integrity fell below 50% 14064 | -4/Proximity Caves | Core integrity fell below 20% 14069 | -4/Proximity Caves | Destroyed by B-86 Titan with Matter Neutralizer Last Messages --------------- 13934_ Dropped Lrg. Storage Unit. 13934_ Dropped KE Penetrator. LOCATION=UNKNOWN GOAL=ESCAPE 13946_ Acquired derelict log, extracted data. Data stored: Research security intel. 14011_ Searching scrap... 14011_ Found Mak. System Shield. 14011_ Found HERF Cannon. 14011_ Found 23 Matter. 14012_ Acquired 23 matter. 14012_ Dropped Com. Ion Cannon. 14013_ Acquired HERF Cannon. 14015_ Acquired Com. Ion Cannon. 14053_ Armor Integrity Analyzer destroyed. 14063_ B-86 Titan exits siege mode. 14063_ Knocked back. 14066_ Penetrated by Slug. 14066_ Adv. Targeting Computer destroyed. 14068_ B-86 Titan activates siege mode. Map ----- +----------------------------------------------------+ | ?????????????????????????????????????????????????? | | ?????????????????????????????????????????????????? | | ?????????????????????????????????????????????????? | | ?????????????????????????????????????????????????? | | ?????????????????????????????????????????????????? | | ?????????????????????????????????????????????????? | | ?????????????????????????????????????????????????? | | ?????????????????????????????????????????????????? | | ?????????????????????????????????????????????????? | | ?????????????????????????????????????????????????? | | ????????????????????????##???????????????????????? | | ?? ??????????????????## ???????????????????????? | | ?? #????????????????## ???????????????????????? | | ## #??? ??????????? ???????????????????????? | | # #??? ????????? ???????????????????????? | | # #?? #????????? ???????????????????????? | | #?? #????????? ???????????????????????? | | ### ?????????? #??????????????????????? | | ??????????# #??????????????????????? | | ????????????# #??????????????????????? | | ????????????## #??????????????????????? | | ????## ?????## #??????????????????????? | | #?????# ##### ##?????????????????????? | | #???#### #?????????????????????? | | ##### ## #?????????????????????? | | ##???# @#??????????????????????? | | ###### #??????????????????????? | | # ### ### ##?????????????????????? | | ### #?## #?????????????????????? | | ## ## ##??# #?????????????????????? | | #### ##### ##??# ###????????????????????? | | # ### #???## #??# #????????????????????? | | ## #???## #??# #????????????????????? | | ?# #???# #### BB #????????????????????? | | ?# ##???## BB #????????????????????? | | ?# ##?????## ##???????????????????? | | ?#### #???????## "#???????????????????? | | ????# ##????????# ;""##??????????????????? | | ????# ##???????### ;;;# ##?????????????????? | | ????# #???????## ;;###""##????????????????? | | ????# #???????# ;; ## ####?????????????? | | ????# #?????# ### #?????????????? | | ????# #?????#####??## #?????????????? | | ????# #?????????????# ###?????????????? | | ##### #?????????????# #???????????????? | | #?????????????# ##??????????????? | | #######?????????????## ##?????????????? | | ?????????????????????# ##????????????? | | ????????????????????## #????????????? | | ???????????????????## #???????????? | +----------------------------------------------------+ Best States ------------- Heat Dissipation 70 Coolant Potential 80 Energy Generation 31 Energy Capacity 395 Matter Stores 300 Matter Capacity 300 Sight Range 16 Terrain Scan Range 24 Terrain Scan Density 10 Armor Coverage 750 Resistance: KI 20 Utility Shielding 66 Weapon Shielding 66 Phase Shifting 5 Evasion (%) 50 Targeting Accuracy 8 Armor Integrity Analysis 33 Recoil Reduction 4 Energy Filtering 50 Particle Charging 20 Kinecelleration 40 Relay Coupler Types 46 Relay Coupler Value 2 Item Schematics ----------------- Adv. Cooling System | -6/Factory | Hacked Scatter Rocket Array | -5/Factory | Scanalyzed Robot Schematics ------------------ None Fabricated ------------ Nothing Alien Tech Used ----------------- None Achievements -------------- None Challenges ------------ None Game ------ Seed SurgeAbsorptionDisintegrator Manual? 0 Play Time 01:23:06 Cumulative 419.8 hours Start 2021.05.30 @ 07:55:19 End 2021.05.30 @ 09:23:28 Sessions 1 Manual Loads 0 Difficulty Rogue Special Mode None Game No. 322 Rogue 315 Adventurer 0 Explorer 7 Win Type - Total 18 Types 8/1/9/0/0/0/0/0/0 Lore% 80 Gallery% 93 Achievement% 77 Wizard Run 0 Options --------- ASCII 0 Keyboard 0 Movement Numpad Keybinds 0 Fullscreen 1 Font 18/X11Bold Map View 76x50 Tactical HUD 1 Map Filters NONE Filters NONE Steam 1 RUN: 5df848f7-c774-4c80-a65a-58bf6b7a61ed